[Event "22nd ETCC Women 2019"]
[Site "Batumi"]
[Date "2019.10.26"]
[Round "3.4"]
[White "Gajcin, Marina"]
[Black "Lehtinen, Helja"]
[Result "1-0"]
[ECO "B40"]
[WhiteElo "2262"]
[BlackElo "1802"]
[Annotator "NA"]
[PlyCount "117"]
[EventDate "2019.10.24"]
[EventType "team-tourn"]
[EventCountry "GEO"]
[SourceTitle "playchess.com"]
[Source "ChessBase"]
[SourceQuality "1"]
[WhiteTeam "Serbia"]
[BlackTeam "Finland"]
[WhiteTeamCountry "SRB"]
[BlackTeamCountry "FIN"]
[TimeControl "40/5400+30:1800+30"]

1. e4 {[%emt 0:00:00]} c5 {[%emt 0:00:00]} 2. Nf3 {[%emt 0:00:00]} e6 {[%emt 0:00:00]} 3. d4 {[%emt 0:00:00]} cxd4 {[%emt 0:00:00]} 4. Nxd4 {[%emt 0:00:00]} Nf6 {[%emt 0:00:09]} 5. Nc3 {[%emt 0:00:00]} Nc6 {[%emt 0:00:31]} 6. Ndb5 {[%emt 0:00:53]} Bb4 {[%emt 0:01:28]} 7. a3 {[%emt 0:00:25]} Bxc3+ {[%emt 0:00:11]} 8. Nxc3 {[%emt 0:00:06]} d5 {[%emt 0:01:07]} 9. exd5 {[%emt 0:00:07]} exd5 {[%emt 0:00:10]} 10. Bd3 {[%emt 0:00:07]} O-O {[%emt 0:01:25]} 11. O-O {[%emt 0:00:06]} d4 {[%emt 0:02:11]} 12. Ne2 {[%emt 0:00:52]} Bg4 {[%emt 0:05:01]} 13. Bg5 {[%emt 0:11:16]} Bxe2 {[%emt 0:20:00]} 14. Qxe2 {[%emt 0:11:00]} Re8 {[%emt 0:00:49]} 15. Qf3 {[%emt 0:07:05]} Ne5 {[%emt 0:33:18]} 16. Qxb7 {[%emt 0:12:53]} Nxd3 {[%emt 0:00:20]} 17. cxd3 {[%emt 0:02:31]} Qd5 {[%emt 0:01:06]} 18. Qxd5 {[%emt 0:00:46]} Nxd5 {[%emt 0:00:07]} 19. Rac1 {[%emt 0:18:16]} f6 {[%emt 0:05:01]} 20. Rc5 {[%emt 0:03:37]} Nb6 {[%emt 0:07:33]} 21. Bf4 {[%emt 0:03:49]} Re2 {[%emt 0:05:12]} 22. b4 {[%emt 0:05:06]} g5 {[%emt 0:04:52]} 23. Bc1 {[%emt 0:02:23]} Rc8 {[%emt 0:03:56]} 24. Rxc8+ {[%emt 0:04:07]} Nxc8 {[%emt 0:00:07]} 25. h4 {[%emt 0:03:16]} gxh4 {[%emt 0:03:42]} 26. Bf4 {[%emt 0:00:59]} Ra2 {[%emt 0:01:45]} 27. Re1 {[%emt 0:01:31]} Kf7 {[%emt 0:00:04]} 28. Re4 {[%emt 0:04:26]} Rxa3 {[%emt 0:01:24]} 29. Rxd4 {[%emt 0:00:01]} Ne7 {[%emt 0:01:34]} 30. Be3 {[%emt 0:02:03]} Nc6 {[%emt 0:01:21]} 31. Rxh4 {[%emt 0:00:44]} Rxd3 {[%emt 0:00:31]} 32. b5 {[%emt 0:01:23]} Rd1+ {[%emt 0:00:24]} 33. Kh2 {[%emt 0:00:03]} Ne5 {[%emt 0:00:35]} 34. Rxh7+ {[%emt 0:01:14]} Kg6 {[%emt 0:00:13]} 35. Rxa7 {[%emt 0:00:25]} Rb1 {[%emt 0:00:40]} 36. Rb7 {[%emt 0:00:38]} Kf5 {[%emt 0:00:27]} 37. b6 {[%emt 0:01:36]} Rb3 {[%emt 0:00:12]} 38. Kg3 {[%emt 0:02:49]} Nc4 {[%emt 0:00:52]} 39. Kf3 {[%emt 0:00:19]} Ne5+ {[%emt 0:00:33]} 40. Ke2 {[%emt 0:00:00]} Nc4 {[%emt 0:00:00]} 41. Bd4 {[%emt 0:12:45]} Nd6 {[%emt 0:08:03]} 42. Re7 {[%emt 0:02:50]} Nb5 {[%emt 0:05:34]} 43. Be3 {[%emt 0:01:51]} Nc3+ {[%emt 0:03:17]} 44. Kf3 {[%emt 0:01:23]} Nd5 {[%emt 0:01:49]} 45. Rb7 {[%emt 0:03:11]} Nb4 {[%emt 0:04:12]} 46. Rc7 {[%emt 0:02:51]} Nd5 {[%emt 0:01:58]} 47. Rb7 {[%emt 0:02:18]} Nb4 {[%emt 0:01:55]} 48. g4+ {[%emt 0:01:18]} Ke6 {[%emt 0:01:33]} 49. Ke4 {[%emt 0:03:07]} Nd5 {[%emt 0:00:50]} 50. Rb8 {[%emt 0:00:40]} Ne7 {[%emt 0:03:22]} 51. Rf8 {[%emt 0:02:16]} Ng6 {[%emt 0:01:30]} 52. Re8+ {[%emt 0:00:53]} Kd7 {[%emt 0:00:19]} 53. Rg8 {[%emt 0:00:26]} Ne7 {[%emt 0:00:09]} 54. Rf8 {[%emt 0:00:29]} Ke6 {[%emt 0:01:07]} 55. Bd4 {[%emt 0:00:46]} Nd5 {[%emt 0:00:11]} 56. f4 {[%emt 0:00:26]} Rb4 {[%emt 0:01:10]} 57. f5+ {[%emt 0:01:00]} Ke7 {[%emt 0:00:34]} 58. Kxd5 {[%emt 0:00:12]} Kxf8 {[%emt 0:00:21]} 59. Bc5+ {[%emt 0:00:04]} 1-0

[Event "22nd ETCC Women 2019"]
[Site "Batumi"]
[Date "2019.10.26"]
[Round "3.5"]
[White "Bulmaga, Irina"]
[Black "Dzagnidze, Nana"]
[Result "0-1"]
[ECO "B43"]
[WhiteElo "2442"]
[BlackElo "2502"]
[Annotator "ChessBase"]
[PlyCount "169"]
[EventDate "2019.10.24"]
[EventType "team-tourn"]
[EventCountry "GEO"]
[SourceTitle "playchess.com"]
[Source "ChessBase"]
[SourceQuality "1"]
[WhiteTeam "Romania"]
[BlackTeam "Georgia"]
[WhiteTeamCountry "ROU"]
[BlackTeamCountry "GEO"]
[TimeControl "40/5400+30:1800+30"]

1. e4 {[%emt 0:00:00]} c5 {[%emt 0:00:00]} 2. Nf3 {[%emt 0:00:00]} a6 {[%emt 0:00:00]} 3. Nc3 {[%emt 0:00:03]} e6 {[%emt 0:00:57]} 4. d4 {[%emt 0:00:16]} cxd4 {[%emt 0:00:14]} 5. Nxd4 {[%emt 0:00:08]} Qc7 {[%emt 0:00:17]} 6. Bd3 {[%emt 0:00:54]} Nf6 {[%emt 0:01:13]} 7. f4 {[%emt 0:00:28]} Bb4 {[%emt 0:03:13]} 8. Bd2 {[%emt 0:01:02]} d6 {[%emt 0:00:18]} 9. Qf3 {[%emt 0:11:16]} e5 {[%emt 0:09:59]} 10. fxe5 {[%emt 0:09:41]} dxe5 {[%emt 0:00:27]} 11. Nf5 {[%emt 0:03:46]} Bxf5 {[%emt 0:00:25]} 12. Qxf5 {[%emt 0:01:28]} Nc6 {[%emt 0:08:51]} 13. O-O-O {[%emt 0:03:53]} Nd4 {[%emt 0:05:57]} 14. Qh3 {[%emt 0:04:40]} O-O {[%emt 0:09:57]} 15. Kb1 {[%emt 0:05:54]} Bxc3 {[%emt 0:03:07]} 16. Bxc3 {[%emt 0:00:19]} Rfd8 {[%emt 0:00:30]} 17. Rhf1 {[%emt 0:06:34]} Rac8 {[%emt 0:04:35]} 18. Bxd4 {[%emt 0:08:48]} Rxd4 {[%emt 0:00:36]} 19. c3 {[%emt 0:01:42]} Rd6 {[%emt 0:03:57]} 20. Bc2 {[%emt 0:01:52]} Rcd8 {[%emt 0:07:43]} 21. Rxd6 {[%emt 0:01:50]} Rxd6 {[%emt 0:01:34]} 22. Qf5 {[%emt 0:06:04]} g6 {[%emt 0:02:04]} 23. Qf3 {[%emt 0:00:51]} Kg7 {[%emt 0:03:20]} 24. g4 {[%emt 0:04:07]} h6 {[%emt 0:05:16]} 25. Bb3 {[%emt 0:06:40]} Qe7 {[%emt 0:00:43]} 26. h4 {[%emt 0:04:11]} Rd7 {[%emt 0:00:11]} 27. h5 {[%emt 0:10:04]} g5 {[%emt 0:10:29]} 28. Bd5 {[%emt 0:04:13]} b5 {[%emt 0:03:07]} 29. a3 {[%emt 0:00:29]} Rd6 {[%emt 0:00:46]} 30. Bb3 {[%emt 0:01:46]} a5 {[%emt 0:03:32]} 31. Qe2 {[%emt 0:01:44]} Qd7 {[%emt 0:03:12]} 32. Kc1 {[%emt 0:00:35]} b4 {[%emt 0:01:05]} 33. cxb4 {[%emt 0:00:39]} axb4 {[%emt 0:00:14]} 34. a4 {[%emt 0:00:29]} Rd3 {[%emt 0:04:01]} 35. Bd5 {[%emt 0:00:32]} Rd4 {[%emt 0:00:34]} 36. Qf3 {[%emt 0:00:30]} Nxd5 {[%emt 0:00:32]} 37. exd5 {[%emt 0:00:06]} Rf4 {[%emt 0:00:22]} 38. Qd3 {[%emt 0:00:47]} Rxf1+ {[%emt 0:04:03]} 39. Qxf1 {[%emt 0:00:01]} Qxd5 {[%emt 0:00:21]} 40. Qb5 {[%emt 0:00:00]} Qd4 {[%emt 0:00:00]} 41. a5 {[%emt 0:17:42]} e4 {[%emt 0:00:57]} 42. a6 {[%emt 0:00:50]} e3 {[%emt 0:00:48]} 43. a7 {[%emt 0:03:27]} Qxa7 {[%emt 0:04:30]} 44. Qxb4 {[%emt 0:00:51]} Qd7 {[%emt 0:10:14]} 45. Qc3+ {[%emt 0:03:51]} Kg8 {[%emt 0:01:01]} 46. Qxe3 {[%emt 0:01:59]} Qxg4 {[%emt 0:00:11]} 47. Qe8+ {[%emt 0:01:39]} Kg7 {[%emt 0:00:06]} 48. Qe5+ {[%emt 0:00:35]} Kh7 {[%emt 0:00:05]} 49. Qf6 {[%emt 0:03:26]} Qxh5 {[%emt 0:03:49]} 50. b4 {[%emt 0:00:10]} g4 {[%emt 0:01:13]} 51. Kd2 {[%emt 0:00:56]} Qd5+ {[%emt 0:05:17]} 52. Ke1 {[%emt 0:01:40]} Kg8 {[%emt 0:04:06]} 53. Qxh6 {[%emt 0:00:11]} g3 {[%emt 0:02:07]} 54. Qf4 {[%emt 0:00:07]} Qd3 {[%emt 0:02:11]} 55. Qg5+ {[%emt 0:01:01]} Kf8 {[%emt 0:00:06]} 56. Qc5+ {[%emt 0:00:29]} Ke8 {[%emt 0:00:02]} 57. b5 {[%emt 0:00:41]} Qf3 {[%emt 0:03:02]} 58. b6 {[%emt 0:00:29]} g2 {[%emt 0:00:16]} 59. Qf2 {[%emt 0:00:33]} Qe4+ {[%emt 0:00:36]} 60. Kd2 {[%emt 0:00:21]} f5 {[%emt 0:00:19]} 61. Qc5 {[%emt 0:00:38]} f4 {[%emt 0:00:21]} 62. Qc8+ {[%emt 0:00:27]} Kf7 {[%emt 0:00:49]} 63. Qd7+ {[%emt 0:00:21]} Kf6 {[%emt 0:00:18]} 64. Qd8+ {[%emt 0:00:23]} Kf5 {[%emt 0:00:22]} 65. Qd7+ {[%emt 0:00:37]} Kg5 {[%emt 0:00:30]} 66. Qg7+ {[%emt 0:00:07]} Kh4 {[%emt 0:00:40]} 67. b7 {[%emt 0:00:21]} Qe3+ {[%emt 0:00:20]} 68. Kc2 {[%emt 0:00:05]} g1=Q {[%emt 0:00:35]} 69. Qxg1 {[%emt 0:00:52]} Qxg1 {[%emt 0:00:03]} 70. b8=Q {[%emt 0:00:06]} Qe3 {[%emt 0:00:55]} 71. Kd1 {[%emt 0:01:34]} Kg3 {[%emt 0:01:19]} 72. Qg8+ {[%emt 0:00:21]} Kf2 {[%emt 0:00:13]} 73. Qa2+ {[%emt 0:00:15]} Kg1 {[%emt 0:00:22]} 74. Qg8+ {[%emt 0:00:13]} Qg3 75. Qd5 {[%emt 0:01:15]} f3 {[%emt 0:00:19]} 76. Qd4+ {[%emt 0:00:23]} Kh1 {[%emt 0:00:41]} 77. Qe4 {[%emt 0:00:38]} Qg1+ {[%emt 0:00:59]} 78. Kd2 {[%emt 0:00:27]} Qg2+ {[%emt 0:00:08]} 79. Kc3 {[%emt 0:00:35]} f2 {[%emt 0:00:19]} 80. Qh4+ {[%emt 0:00:20]} Kg1 {[%emt 0:00:07]} 81. Qd4 {[%emt 0:00:05]} Qg5 {[%emt 0:01:21]} 82. Kd3 {[%emt 0:00:47]} Kg2 {[%emt 0:00:20]} 83. Qe4+ {[%emt 0:00:10]} Kg3 {[%emt 0:00:11]} 84. Qh1 {[%emt 0:01:09]} f1=Q+ {[%emt 0:00:44]} 85. Kd4 0-1

[Event "22nd ETCC Women 2019"]
[Site "Batumi"]
[Date "2019.10.26"]
[Round "3.5"]
[White "Hoolt, Sarah"]
[Black "Unuk, Laura"]
[Result "1/2-1/2"]
[ECO "B18"]
[WhiteElo "2323"]
[BlackElo "2278"]
[Annotator "NA"]
[PlyCount "55"]
[EventDate "2019.10.24"]
[EventType "team-tourn"]
[EventCountry "GEO"]
[SourceTitle "playchess.com"]
[Source "ChessBase"]
[SourceQuality "1"]
[WhiteTeam "GER"]
[BlackTeam "SLO"]
[WhiteTeamCountry "GER"]
[BlackTeamCountry "SLO"]
[TimeControl "40/5400+30:1800+30"]

1. e4 {[%emt 0:00:00]} c6 {[%emt 0:00:00]} 2. d4 {[%emt 0:00:00]} d5 {[%emt 0:00:00]} 3. Nc3 {[%emt 0:00:00]} dxe4 {[%emt 0:00:17]} 4. Nxe4 {[%emt 0:00:06]} Bf5 {[%emt 0:00:07]} 5. Ng3 {[%emt 0:00:12]} Bg6 {[%emt 0:00:09]} 6. h4 {[%emt 0:00:07]} h6 {[%emt 0:00:19]} 7. Nf3 {[%emt 0:00:06]} e6 {[%emt 0:00:22]} 8. Bd3 {[%emt 0:03:33]} Bxd3 {[%emt 0:02:56]} 9. Qxd3 {[%emt 0:00:08]} Nf6 {[%emt 0:00:19]} 10. Bd2 {[%emt 0:02:00]} Be7 {[%emt 0:04:13]} 11. O-O-O {[%emt 0:01:02]} O-O {[%emt 0:00:21]} 12. Qe2 {[%emt 0:02:44]} Nbd7 {[%emt 0:08:55]} 13. Nf1 {[%emt 0:00:58]} c5 {[%emt 0:05:25]} 14. g4 {[%emt 0:00:15]} Nxg4 {[%emt 0:04:08]} 15. Rg1 {[%emt 0:00:16]} h5 {[%emt 0:03:56]} 16. Ng3 {[%emt 0:10:30]} g6 {[%emt 0:14:26]} 17. Nxh5 {[%emt 0:05:28]} gxh5 {[%emt 0:04:57]} 18. Nh2 {[%emt 0:00:14]} f5 {[%emt 0:03:59]} 19. Nxg4 {[%emt 0:10:18]} hxg4 {[%emt 0:13:58]} 20. Rxg4+ {[%emt 0:01:13]} Kf7 {[%emt 0:08:42]} 21. Rg6 {[%emt 0:24:05]} Kxg6 {[%emt 0:11:11]} 22. Rg1+ {[%emt 0:00:29]} Bg5 {[%emt 0:00:03]} 23. Qxe6+ {[%emt 0:08:33]} Rf6 {[%emt 0:02:49]} 24. Rxg5+ {[%emt 0:01:08]} Kh7 {[%emt 0:00:08]} 25. Rh5+ {[%emt 0:02:57]} Kg7 {[%emt 0:00:38]} 26. Rg5+ {[%emt 0:02:26]} Kh7 {[%emt 0:00:20]} 27. Rh5+ {[%emt 0:00:10]} Kg7 {[%emt 0:00:10]} 28. Rg5+ {[%emt 0:00:19]} 1/2-1/2

[Event "22nd ETCC Women 2019"]
[Site "Batumi"]
[Date "2019.10.26"]
[Round "3.6"]
[White "Javakhishvili, Lela"]
[Black "Peptan, Corina-Isabela"]
[Result "1/2-1/2"]
[ECO "E15"]
[WhiteElo "2457"]
[BlackElo "2371"]
[Annotator "ChessBase"]
[PlyCount "124"]
[EventDate "2019.10.24"]
[EventType "team-tourn"]
[EventCountry "GEO"]
[SourceTitle "playchess.com"]
[Source "ChessBase"]
[SourceQuality "1"]
[WhiteTeam "Georgia"]
[BlackTeam "Romania"]
[WhiteTeamCountry "GEO"]
[BlackTeamCountry "ROU"]
[TimeControl "40/5400+30:1800+30"]

1. d4 Nf6 {[%emt 0:00:00]} 2. c4 {[%emt 0:00:00]} e6 {[%emt 0:00:00]} 3. Nf3 {[%emt 0:00:00]} b6 {[%emt 0:00:00]} 4. g3 {[%emt 0:00:06]} Ba6 {[%emt 0:00:47]} 5. Qb3 c6 6. Bf4 {[%emt 0:08:48]} Be7 {[%emt 0:03:09]} 7. Nc3 {[%emt 0:01:07]} d5 {[%emt 0:05:57]} 8. cxd5 {[%emt 0:03:22]} exd5 {[%emt 0:00:30]} 9. Bg2 {[%emt 0:01:27]} Nbd7 {[%emt 0:07:16]} 10. O-O {[%emt 0:00:57]} O-O {[%emt 0:00:39]} 11. Rfe1 {[%emt 0:02:48]} Bb7 {[%emt 0:08:16]} 12. Rad1 {[%emt 0:01:01]} Re8 {[%emt 0:00:43]} 13. Ne5 {[%emt 0:05:44]} Nxe5 {[%emt 0:01:39]} 14. dxe5 {[%emt 0:04:47]} Nd7 {[%emt 0:00:05]} 15. Qc2 {[%emt 0:11:03]} Bc5 {[%emt 0:16:27]} 16. a3 {[%emt 0:10:57]} Nxe5 {[%emt 0:08:18]} 17. b4 {[%emt 0:00:55]} Bf8 {[%emt 0:00:51]} 18. b5 {[%emt 0:00:31]} Qc8 {[%emt 0:01:48]} 19. bxc6 {[%emt 0:12:51]} Bxc6 {[%emt 0:00:07]} 20. Nxd5 {[%emt 0:01:01]} Bxd5 {[%emt 0:00:41]} 21. Qxc8 {[%emt 0:00:12]} Raxc8 {[%emt 0:00:05]} 22. Rxd5 {[%emt 0:00:12]} Ng6 {[%emt 0:03:37]} 23. Bd6 {[%emt 0:05:13]} Bxd6 {[%emt 0:07:14]} 24. Rxd6 {[%emt 0:00:07]} Kf8 {[%emt 0:03:12]} 25. f4 {[%emt 0:02:43]} Red8 {[%emt 0:01:59]} 26. Rxd8+ {[%emt 0:00:51]} Rxd8 {[%emt 0:00:05]} 27. Rc1 {[%emt 0:00:11]} Ke7 {[%emt 0:00:53]} 28. Bh3 {[%emt 0:04:16]} Kd6 {[%emt 0:01:11]} 29. e4 {[%emt 0:00:29]} f6 {[%emt 0:00:06]} 30. Kf2 {[%emt 0:00:27]} Ne7 {[%emt 0:00:25]} 31. Ke3 {[%emt 0:02:25]} h6 {[%emt 0:10:19]} 32. Bf1 {[%emt 0:02:21]} Nc6 {[%emt 0:06:21]} 33. Bb5 {[%emt 0:01:54]} Ne7 {[%emt 0:01:07]} 34. a4 {[%emt 0:01:45]} a5 {[%emt 0:10:07]} 35. h4 {[%emt 0:02:39]} g6 {[%emt 0:01:58]} 36. Rc2 {[%emt 0:00:50]} h5 37. Rc1 {[%emt 0:07:18]} f5 {[%emt 0:01:54]} 38. e5+ {[%emt 0:00:30]} Ke6 {[%emt 0:00:06]} 39. Bc4+ {[%emt 0:01:10]} Kd7 {[%emt 0:00:00]} 40. Rd1+ {[%emt 0:00:00]} Kc7 {[%emt 0:00:00]} 41. Rxd8 {[%emt 0:08:05]} Kxd8 {[%emt 0:00:03]} 42. Kd4 {[%emt 0:00:40]} Ke8 {[%emt 0:06:25]} 43. Bb5+ {[%emt 0:01:17]} Kd8 {[%emt 0:00:22]} 44. Kc4 {[%emt 0:01:53]} Kc7 {[%emt 0:03:05]} 45. Be8 {[%emt 0:00:23]} Kd8 {[%emt 0:00:20]} 46. Bf7 {[%emt 0:00:14]} Kc7 {[%emt 0:00:01]} 47. Kb5 {[%emt 0:00:20]} Kb7 {[%emt 0:00:02]} 48. Be8 {[%emt 0:01:30]} Kc7 {[%emt 0:01:18]} 49. Ka6 {[%emt 0:03:10]} Kd8 {[%emt 0:00:46]} 50. Kxb6 {[%emt 0:06:58]} Kxe8 {[%emt 0:00:10]} 51. Kxa5 {[%emt 0:00:04]} Nd5 {[%emt 0:06:46]} 52. Ka6 {[%emt 0:00:34]} Nxf4 {[%emt 0:08:26]} 53. a5 {[%emt 0:00:12]} Nd5 {[%emt 0:02:26]} 54. Kb5 {[%emt 0:00:50]} Kd7 {[%emt 0:00:25]} 55. Kc5 {[%emt 0:00:10]} Ke6 {[%emt 0:05:01]} 56. a6 {[%emt 0:00:31]} Kxe5 {[%emt 0:00:07]} 57. a7 {[%emt 0:00:12]} Nc7 {[%emt 0:00:04]} 58. Kc6 {[%emt 0:00:18]} Na8 {[%emt 0:00:06]} 59. Kd7 {[%emt 0:03:46]} Nb6+ {[%emt 0:00:58]} 60. Kc6 {[%emt 0:00:12]} Na8 {[%emt 0:00:04]} 61. Kd7 {[%emt 0:00:03]} Ke4 {[%emt 0:03:26]} 62. Kc6 {[%emt 0:00:30]} Ke5 {[%emt 0:00:05]} 1/2-1/2

[Event "22nd ETCC Women 2019"]
[Site "Batumi"]
[Date "2019.10.26"]
[Round "3.6"]
[White "Janzelj, Lara"]
[Black "Sieber, Fiona"]
[Result "1-0"]
[ECO "D86"]
[WhiteElo "2159"]
[BlackElo "2252"]
[Annotator "NA"]
[PlyCount "85"]
[EventDate "2019.10.24"]
[EventType "team-tourn"]
[EventCountry "GEO"]
[SourceTitle "playchess.com"]
[Source "ChessBase"]
[SourceQuality "1"]
[WhiteTeam "Slovenia"]
[BlackTeam "Germany"]
[WhiteTeamCountry "SLO"]
[BlackTeamCountry "GER"]
[TimeControl "40/5400+30:1800+30"]

1. d4 {[%emt 0:00:00]} Nf6 {[%emt 0:00:00]} 2. c4 {[%emt 0:00:00]} g6 {[%emt 0:00:00]} 3. Nc3 {[%emt 0:00:00]} d5 {[%emt 0:00:00]} 4. cxd5 {[%emt 0:00:00]} Nxd5 {[%emt 0:00:00]} 5. e4 {[%emt 0:00:00]} Nxc3 {[%emt 0:00:00]} 6. bxc3 $11 {[%emt 0:00:00]} Bg7 {[%emt 0:00:00]} 7. Bc4 {[%emt 0:00:00]} c5 {[%emt 0:00:16]} 8. Ne2 {[%emt 0:00:00]} Nc6 {[%emt 0:00:08]} 9. Be3 {[%emt 0:00:05]} O-O {[%emt 0:00:05]} 10. O-O {[%emt 0:00:04]} Bg4 {[%emt 0:00:07]} 11. f3 {[%emt 0:00:04]} Bd7 {[%emt 0:00:04]} 12. Rb1 {[%emt 0:00:14]} Qc7 {[%emt 0:00:44]} 13. Bf4 {[%emt 0:04:45]} Qc8 {[%emt 0:00:14]} 14. Bd5 {[%emt 0:12:33]} e6 {[%emt 0:04:52]} 15. Bb3 {[%emt 0:03:12]} Rd8 {[%emt 0:27:05]} 16. Bg5 {[%emt 0:09:04]} f6 {[%emt 0:05:11]} 17. Bh4 {[%emt 0:00:59]} Be8 {[%emt 0:09:06]} 18. f4 {[%emt 0:08:05]} Ne7 {[%emt 0:08:07]} 19. f5 {[%emt 0:11:28]} c4 {[%emt 0:01:45]} 20. Bc2 {[%emt 0:00:59]} exf5 {[%emt 0:09:26]} 21. exf5 {[%emt 0:00:16]} Nd5 {[%emt 0:00:11]} 22. Be4 {[%emt 0:06:55]} g5 {[%emt 0:05:49]} 23. Be1 {[%emt 0:00:23]} Bc6 {[%emt 0:01:28]} 24. Qc1 {[%emt 0:04:59]} Qd7 {[%emt 0:01:10]} 25. Bd2 {[%emt 0:04:17]} Re8 {[%emt 0:05:47]} 26. Bf3 {[%emt 0:00:22]} Re7 {[%emt 0:02:19]} 27. Ng3 {[%emt 0:00:18]} Rae8 {[%emt 0:00:56]} 28. Bh5 {[%emt 0:00:28]} Rc8 {[%emt 0:02:00]} 29. Qc2 {[%emt 0:09:59]} Bf8 {[%emt 0:02:20]} 30. Rbe1 {[%emt 0:05:08]} Rxe1 {[%emt 0:02:32]} 31. Rxe1 {[%emt 0:00:01]} Bd6 {[%emt 0:00:17]} 32. Ne4 {[%emt 0:02:12]} Qc7 {[%emt 0:04:20]} 33. Nxd6 {[%emt 0:01:57]} Qxd6 {[%emt 0:00:02]} 34. Re6 {[%emt 0:00:09]} Qa3 {[%emt 0:01:02]} 35. Bf3 {[%emt 0:00:49]} Kf7 {[%emt 0:00:59]} 36. Qe4 {[%emt 0:05:42]} Nxc3 {[%emt 0:04:59]} 37. Rxf6+ {[%emt 0:00:52]} Kxf6 {[%emt 0:00:21]} 38. Qe5+ {[%emt 0:04:06]} Kf7 {[%emt 0:00:06]} 39. Bh5+ {[%emt 0:00:05]} Kg8 {[%emt 0:00:21]} 40. Qe6+ {[%emt 0:00:00]} Kg7 {[%emt 0:00:00]} 41. Qf7+ {[%emt 0:01:34]} Kh8 {[%emt 0:00:41]} 42. Qf6+ {[%emt 0:00:05]} Kg8 {[%emt 0:00:04]} 43. Bf7+ {[%emt 0:00:06]} 1-0

[Event "22nd ETCC Women 2019"]
[Site "Batumi"]
[Date "2019.10.26"]
[Round "3.7"]
[White "Cosma, Elena-Luminita"]
[Black "Khotenashvili, Bela"]
[Result "1/2-1/2"]
[ECO "A49"]
[WhiteElo "2313"]
[BlackElo "2446"]
[Annotator "NA"]
[PlyCount "142"]
[EventDate "2019.10.24"]
[EventType "team-tourn"]
[EventCountry "GEO"]
[SourceTitle "playchess.com"]
[Source "ChessBase"]
[SourceQuality "1"]
[WhiteTeam "Romania"]
[BlackTeam "Georgia"]
[WhiteTeamCountry "ROU"]
[BlackTeamCountry "GEO"]
[TimeControl "40/5400+30:1800+30"]

1. d4 {[%emt 0:00:00]} Nf6 {[%emt 0:00:00]} 2. Nf3 {[%emt 0:00:00]} g6 {[%emt 0:00:00]} 3. g3 {[%emt 0:00:00]} b6 {[%emt 0:00:06]} 4. Bg2 {[%emt 0:00:00]} Bb7 {[%emt 0:00:08]} 5. O-O {[%emt 0:00:34]} Bg7 {[%emt 0:00:04]} 6. c4 {[%emt 0:00:27]} O-O {[%emt 0:00:10]} 7. Qc2 {[%emt 0:00:51]} c5 {[%emt 0:00:32]} 8. d5 {[%emt 0:10:53]} b5 {[%emt 0:00:13]} 9. Rd1 {[%emt 0:13:02]} bxc4 {[%emt 0:02:21]} 10. e4 {[%emt 0:06:52]} e6 {[%emt 0:07:19]} 11. Qxc4 {[%emt 0:05:28]} exd5 {[%emt 0:00:49]} 12. exd5 {[%emt 0:00:05]} d6 {[%emt 0:00:08]} 13. Nc3 {[%emt 0:00:26]} Nbd7 {[%emt 0:04:34]} 14. Qh4 {[%emt 0:03:11]} Qb6 {[%emt 0:10:15]} 15. Rb1 {[%emt 0:00:17]} Rfe8 {[%emt 0:05:34]} 16. Bh6 {[%emt 0:01:58]} Ba6 {[%emt 0:02:23]} 17. Bxg7 {[%emt 0:10:01]} Kxg7 {[%emt 0:00:23]} 18. Rd2 {[%emt 0:00:26]} Qb4 {[%emt 0:10:17]} 19. Bf1 {[%emt 0:08:57]} Bxf1 {[%emt 0:01:33]} 20. Rxf1 {[%emt 0:07:15]} Ne4 {[%emt 0:10:56]} 21. Rc2 {[%emt 0:00:54]} Ndf6 {[%emt 0:01:14]} 22. Rd1 {[%emt 0:04:46]} Rab8 {[%emt 0:10:31]} 23. Nxe4 {[%emt 0:02:39]} Qxe4 {[%emt 0:05:39]} 24. Qxe4 {[%emt 0:00:47]} Rxe4 {[%emt 0:00:02]} 25. Kf1 {[%emt 0:02:06]} a5 {[%emt 0:01:19]} 26. Rd3 {[%emt 0:04:36]} Reb4 {[%emt 0:18:32]} 27. b3 {[%emt 0:01:57]} a4 {[%emt 0:01:14]} 28. Nd2 {[%emt 0:03:36]} Ne4 {[%emt 0:00:59]} 29. Nxe4 {[%emt 0:03:30]} Rxe4 {[%emt 0:00:01]} 30. bxa4 {[%emt 0:03:01]} Rxa4 {[%emt 0:00:50]} 31. Re2 {[%emt 0:00:07]} Rb7 {[%emt 0:01:02]} 32. a3 {[%emt 0:03:05]} Rba7 {[%emt 0:02:44]} 33. Ree3 {[%emt 0:00:05]} Kf6 {[%emt 0:03:11]} 34. Kg2 {[%emt 0:00:47]} h5 {[%emt 0:00:52]} 35. h4 {[%emt 0:01:17]} Rd4 {[%emt 0:00:59]} 36. Rxd4 {[%emt 0:02:04]} cxd4 {[%emt 0:00:02]} 37. Re4 {[%emt 0:00:12]} d3 {[%emt 0:00:27]} 38. a4 {[%emt 0:00:09]} d2 {[%emt 0:00:59]} 39. Rd4 {[%emt 0:00:09]} Rxa4 {[%emt 0:00:14]} 40. Rxd2 {[%emt 0:00:00]} Ke5 {[%emt 0:00:00]} 41. Re2+ {[%emt 0:01:37]} Re4 {[%emt 0:00:40]} 42. Rd2 {[%emt 0:00:10]} Rd4 {[%emt 0:00:15]} 43. Re2+ {[%emt 0:02:57]} Kf5 {[%emt 0:05:21]} 44. Re7 {[%emt 0:00:41]} Kf6 {[%emt 0:00:34]} 45. Ra7 {[%emt 0:00:30]} Rxd5 {[%emt 0:00:06]} 46. Kf3 {[%emt 0:00:24]} Rb5 {[%emt 0:00:35]} 47. Ra6 {[%emt 0:01:26]} Ke5 {[%emt 0:01:01]} 48. Ra7 {[%emt 0:00:12]} Ke6 {[%emt 0:00:09]} 49. Ra6 {[%emt 0:00:08]} Rb3+ {[%emt 0:00:17]} 50. Kf4 {[%emt 0:06:06]} Rb4+ {[%emt 0:02:48]} 51. Kf3 {[%emt 0:01:40]} Ke5 {[%emt 0:07:16]} 52. Ra5+ {[%emt 0:00:49]} d5 {[%emt 0:06:37]} 53. Ra7 {[%emt 0:00:06]} Rb3+ {[%emt 0:00:09]} 54. Ke2 {[%emt 0:00:36]} f6 {[%emt 0:02:33]} 55. Rg7 {[%emt 0:02:13]} Kf5 {[%emt 0:00:58]} 56. Rd7 {[%emt 0:00:06]} Rb5 {[%emt 0:00:47]} 57. Kf3 {[%emt 0:00:24]} Ra5 {[%emt 0:02:59]} 58. Rd8 {[%emt 0:00:13]} Rb5 {[%emt 0:03:20]} 59. Rd7 {[%emt 0:00:09]} g5 {[%emt 0:01:16]} 60. hxg5 {[%emt 0:00:18]} fxg5 {[%emt 0:00:01]} 61. Rf7+ {[%emt 0:00:52]} Kg6 {[%emt 0:00:09]} 62. Rd7 {[%emt 0:00:30]} Kf6 {[%emt 0:01:25]} 63. Rd8 {[%emt 0:00:25]} Rb3+ {[%emt 0:02:27]} 64. Ke2 {[%emt 0:00:31]} Ke5 {[%emt 0:00:33]} 65. Rh8 {[%emt 0:13:12]} Ke4 {[%emt 0:00:46]} 66. Rxh5 {[%emt 0:02:56]} Rb2+ {[%emt 0:00:01]} 67. Ke1 {[%emt 0:00:13]} g4 {[%emt 0:01:16]} 68. Rg5 {[%emt 0:00:30]} Kf3 {[%emt 0:00:30]} 69. Rf5+ {[%emt 0:01:08]} Kg2 {[%emt 0:00:02]} 70. Rf4 {[%emt 0:00:20]} Ra2 {[%emt 0:00:33]} 71. Rxg4 {[%emt 0:00:48]} Rxf2 {[%emt 0:00:04]} 1/2-1/2